[Event "Titled Tuesday Blitz August 3 2021"]
[White "Maksimovic, Bojan"]
[Black "Terry, Renato"]
[WhiteFideId "14408120"]
[BlackFideId "3803457"]
[WhiteElo "2439"]
[BlackElo "2581"]
[Result "1/2-1/2"]
[Round "03"]
[TimeControl "180+1"]
[Date "2021.08.03"]
[WhiteClock "0:00:07"]
[BlackClock "0:00:10"]

1. e4 {[%clk 0:03:00]}  e6 {[%clk 0:03:00]} 2. d4 {[%clk 0:03:00]}  d5 {[%clk 0:03:01]} 3. Nc3 {[%clk 0:03:01]}  Nf6 {[%clk 0:03:01]} 4. Bg5 {[%clk 0:03:01]}  Bb4 {[%clk 0:03:01]} 5. e5 {[%clk 0:02:59]}  h6 {[%clk 0:03:01]} 6. Bd2 {[%clk 0:02:56]}  Bxc3 {[%clk 0:03:01]} 7. bxc3 {[%clk 0:02:56]}  Ne4 {[%clk 0:03:02]} 8. Bd3 {[%clk 0:02:43]}  Nxd2 {[%clk 0:03:02]} 9. Qxd2 {[%clk 0:02:44]}  c5 {[%clk 0:03:02]} 10. h4 {[%clk 0:02:44]}  Qe7 {[%clk 0:03:02]} 11. h5 {[%clk 0:02:39]}  c4 {[%clk 0:02:59]} 12. Be2 {[%clk 0:02:39]}  Qa3 {[%clk 0:02:59]} 13. Rh3 {[%clk 0:02:31]}  Nd7 {[%clk 0:03:00]} 14. Rg3 {[%clk 0:02:30]}  Rg8 {[%clk 0:02:54]} 15. f4 {[%clk 0:02:29]}  b5 {[%clk 0:02:47]} 16. Qc1 {[%clk 0:02:22]}  Qe7 {[%clk 0:02:46]} 17. a4 {[%clk 0:02:04]}  bxa4 {[%clk 0:02:34]} 18. Rxa4 {[%clk 0:01:58]}  a5 {[%clk 0:02:34]} 19. Nf3 {[%clk 0:01:43]}  Nb6 {[%clk 0:02:33]} 20. Ra3 {[%clk 0:01:36]}  Bd7 {[%clk 0:02:32]} 21. Qb2 {[%clk 0:01:30]}  Ra6 {[%clk 0:02:24]} 22. Kf2 {[%clk 0:01:28]}  Qd8 {[%clk 0:01:45]} 23. Rg4 {[%clk 0:01:21]}  Na4 {[%clk 0:01:43]} 24. Qa1 {[%clk 0:01:20]}  Nb6 {[%clk 0:01:28]} 25. Rxa5 {[%clk 0:01:17]}  Rxa5 {[%clk 0:01:29]} 26. Qxa5 {[%clk 0:01:17]}  Na4 {[%clk 0:01:30]} 27. Qb4 {[%clk 0:01:12]}  Qe7 {[%clk 0:01:30]} 28. Ke3 {[%clk 0:01:02]}  Qxb4 {[%clk 0:01:13]} 29. cxb4 {[%clk 0:01:03]}  Ke7 {[%clk 0:01:13]} 30. Ne1 {[%clk 0:00:30]}  f5 {[%clk 0:01:06]} 31. Rg6 {[%clk 0:00:23]}  Kf7 {[%clk 0:01:06]} 32. g4 {[%clk 0:00:11]}  fxg4 {[%clk 0:01:07]} 33. Bxg4 {[%clk 0:00:11]}  Rb8 {[%clk 0:01:07]} 34. Ng2 {[%clk 0:00:05]}  Rxb4 {[%clk 0:00:58]} 35. f5 {[%clk 0:00:06]}  exf5 {[%clk 0:00:55]} 36. Bf3 {[%clk 0:00:06]}  Nc3 {[%clk 0:00:54]} 37. Nf4 {[%clk 0:00:06]}  Be8 {[%clk 0:00:45]} 38. Nxd5 {[%clk 0:00:05]}  Nxd5+ {[%clk 0:00:39]} 39. Bxd5+ {[%clk 0:00:06]}  Kf8 {[%clk 0:00:38]} 40. Rd6 {[%clk 0:00:06]}  Rb2 {[%clk 0:00:35]} 41. Bxc4 {[%clk 0:00:04]}  Rxc2 {[%clk 0:00:35]} 42. Bd3 {[%clk 0:00:05]}  Rh2 {[%clk 0:00:35]} 43. Bxf5 {[%clk 0:00:04]}  Rxh5 {[%clk 0:00:35]} 44. Be4 {[%clk 0:00:04]}  Rh3+ {[%clk 0:00:35]} 45. Kf4 {[%clk 0:00:04]}  Rh4+ {[%clk 0:00:36]} 46. Ke3 {[%clk 0:00:05]}  Rh3+ {[%clk 0:00:33]} 47. Kf4 {[%clk 0:00:05]}  g5+ {[%clk 0:00:30]} 48. Kf5 {[%clk 0:00:05]}  Rh4 {[%clk 0:00:30]} 49. e6 {[%clk 0:00:03]}  Ke7 {[%clk 0:00:29]} 50. Rb6 {[%clk 0:00:02]}  Bg6+ {[%clk 0:00:17]} 51. Kxg6 {[%clk 0:00:02]}  Rxe4 {[%clk 0:00:18]} 52. d5 {[%clk 0:00:02]}  Re5 {[%clk 0:00:18]} 53. Rb7+ {[%clk 0:00:03]}  Kd6 {[%clk 0:00:19]} 54. Rd7+ {[%clk 0:00:03]}  Kc5 {[%clk 0:00:19]} 55. e7 {[%clk 0:00:04]}  g4 {[%clk 0:00:19]} 56. Kf7 {[%clk 0:00:04]}  Rf5+ {[%clk 0:00:18]} 57. Ke6 {[%clk 0:00:04]}  Rf1 {[%clk 0:00:08]} 58. e8=Q {[%clk 0:00:04]}  Re1+ {[%clk 0:00:08]} 59. Kf7 {[%clk 0:00:05]}  Rxe8 {[%clk 0:00:09]} 60. Kxe8 {[%clk 0:00:06]}  h5 {[%clk 0:00:09]} 61. Rh7 {[%clk 0:00:06]}  Kxd5 {[%clk 0:00:09]} 62. Kf7 {[%clk 0:00:04]}  Ke4 {[%clk 0:00:07]} 63. Kg6 {[%clk 0:00:04]}  g3 {[%clk 0:00:07]} 64. Kxh5 {[%clk 0:00:04]}  g2 {[%clk 0:00:07]} 65. Rg7 {[%clk 0:00:04]}  Kf3 {[%clk 0:00:07]} 66. Kh4 {[%clk 0:00:04]}  Kf2 {[%clk 0:00:08]} 67. Rf7+ {[%clk 0:00:05]}  Ke2 {[%clk 0:00:08]} 68. Rg7 {[%clk 0:00:05]}  Kf2 {[%clk 0:00:09]} 69. Rf7+ {[%clk 0:00:06]}  Ke2 {[%clk 0:00:09]} 70. Re7+ {[%clk 0:00:06]}  Kf2 {[%clk 0:00:10]} 71. Rf7+ {[%clk 0:00:07]} 1/2-1/2


[Site "https://www.chess.com"]

[Event "Titled Tuesday Blitz August 3 2021"]
[White "Martinez Alcantara, Jose Eduardo"]
[Black "Shahade, Gregory"]
[WhiteFideId "3805662"]
[BlackFideId "2009064"]
[WhiteElo "2690"]
[BlackElo "2719"]
[Result "1-0"]
[Round "03"]
[TimeControl "180+1"]
[Date "2021.08.03"]
[WhiteClock "0:00:58"]
[BlackClock "0:00:08"]

1. c4 {[%clk 0:03:00]}  Nf6 {[%clk 0:02:59]} 2. g3 {[%clk 0:03:01]}  g6 {[%clk 0:02:58]} 3. Bg2 {[%clk 0:03:01]}  d5 {[%clk 0:02:58]} 4. Nc3 {[%clk 0:03:02]}  d4 {[%clk 0:02:43]} 5. Nd5 {[%clk 0:03:02]}  Bg7 {[%clk 0:02:37]} 6. Nxf6+ {[%clk 0:03:01]}  exf6 {[%clk 0:02:34]} 7. d3 {[%clk 0:03:01]}  O-O {[%clk 0:02:34]} 8. Nf3 {[%clk 0:03:01]}  f5 {[%clk 0:02:35]} 9. O-O {[%clk 0:03:00]}  Nc6 {[%clk 0:02:35]} 10. Bd2 {[%clk 0:02:51]}  a5 {[%clk 0:02:29]} 11. Re1 {[%clk 0:02:41]}  Re8 {[%clk 0:02:29]} 12. a3 {[%clk 0:02:34]}  Qd6 {[%clk 0:02:28]} 13. Qc2 {[%clk 0:02:30]}  a4 {[%clk 0:02:28]} 14. e3 {[%clk 0:02:26]}  Be6 {[%clk 0:02:06]} 15. exd4 {[%clk 0:02:19]}  Nxd4 {[%clk 0:02:06]} 16. Nxd4 {[%clk 0:02:19]}  Bxd4 {[%clk 0:02:06]} 17. Be3 {[%clk 0:01:56]}  Red8 {[%clk 0:00:50]} 18. Rad1 {[%clk 0:01:34]}  c6 {[%clk 0:00:49]} 19. Bg5 {[%clk 0:01:28]}  Rd7 {[%clk 0:00:48]} 20. h4 {[%clk 0:01:27]}  h5 {[%clk 0:00:46]} 21. Bf4 {[%clk 0:01:23]}  Qc5 {[%clk 0:00:45]} 22. Be3 {[%clk 0:01:22]}  Bxe3 {[%clk 0:00:36]} 23. fxe3 {[%clk 0:01:18]}  Qe5 {[%clk 0:00:31]} 24. Kf2 {[%clk 0:01:12]}  Rad8 {[%clk 0:00:31]} 25. d4 {[%clk 0:01:09]}  Qa5 {[%clk 0:00:31]} 26. Bf1 {[%clk 0:01:02]}  Kh7 {[%clk 0:00:22]} 27. Qc3 {[%clk 0:01:01]}  Qc7 {[%clk 0:00:17]} 28. Bg2 {[%clk 0:01:01]}  Re8 {[%clk 0:00:10]} 29. d5 {[%clk 0:00:58]}  cxd5 {[%clk 0:00:10]} 30. cxd5 {[%clk 0:00:59]}  Qxc3 {[%clk 0:00:08]} 31. bxc3 {[%clk 0:01:00]}  Red8 {[%clk 0:00:08]} 32. dxe6 {[%clk 0:00:57]}  Rxd1 {[%clk 0:00:08]} 33. Rxd1 {[%clk 0:00:58]}  Rxd1 {[%clk 0:00:08]} 34. e7 {[%clk 0:00:58]} 1-0


[Site "https://www.chess.com"]

[Event "Titled Tuesday Blitz August 3 2021"]
[White "Mikhailovsky, Vladimir"]
[Black "Siddharth, Jagadeesh"]
[WhiteFideId "34105414"]
[BlackFideId "5818320"]
[WhiteElo "2315"]
[BlackElo "2127"]
[Result "1/2-1/2"]
[Round "03"]
[TimeControl "180+1"]
[Date "2021.08.03"]
[WhiteClock "0:00:13"]
[BlackClock "0:00:11"]

1. e4 {[%clk 0:03:00]}  e5 {[%clk 0:02:59]} 2. Nf3 {[%clk 0:03:01]}  Nc6 {[%clk 0:02:59]} 3. Nc3 {[%clk 0:03:01]}  Nf6 {[%clk 0:02:59]} 4. d4 {[%clk 0:03:01]}  exd4 {[%clk 0:03:00]} 5. Nxd4 {[%clk 0:03:02]}  Bb4 {[%clk 0:03:00]} 6. Nxc6 {[%clk 0:03:03]}  bxc6 {[%clk 0:03:01]} 7. Bd3 {[%clk 0:03:03]}  d5 {[%clk 0:03:01]} 8. exd5 {[%clk 0:03:04]}  O-O {[%clk 0:03:02]} 9. O-O {[%clk 0:03:04]}  Bg4 {[%clk 0:03:02]} 10. f3 {[%clk 0:03:02]}  Bh5 {[%clk 0:03:02]} 11. dxc6 {[%clk 0:03:01]}  Qd4+ {[%clk 0:03:01]} 12. Kh1 {[%clk 0:03:02]}  Bxc3 {[%clk 0:03:02]} 13. bxc3 {[%clk 0:03:03]}  Qxc3 {[%clk 0:03:03]} 14. Rb1 {[%clk 0:03:02]}  Bg6 {[%clk 0:03:01]} 15. Rb3 {[%clk 0:03:01]}  Qxc6 {[%clk 0:03:01]} 16. Bb2 {[%clk 0:03:01]}  Rfd8 {[%clk 0:02:58]} 17. Qa1 {[%clk 0:03:00]}  Bxd3 {[%clk 0:02:52]} 18. cxd3 {[%clk 0:02:56]}  Rab8 {[%clk 0:02:33]} 19. Rc1 {[%clk 0:02:54]}  Qd6 {[%clk 0:02:27]} 20. Be5 {[%clk 0:02:49]}  Qe6 {[%clk 0:02:15]} 21. Rxb8 {[%clk 0:02:30]}  Rxb8 {[%clk 0:02:14]} 22. Bxc7 {[%clk 0:02:31]}  Rc8 {[%clk 0:02:12]} 23. a4 {[%clk 0:02:10]}  Qd7 {[%clk 0:01:49]} 24. Be5 {[%clk 0:02:06]}  Rxc1+ {[%clk 0:01:48]} 25. Qxc1 {[%clk 0:02:06]}  Qxa4 {[%clk 0:01:42]} 26. Qc8+ {[%clk 0:01:54]}  Qe8 {[%clk 0:01:41]} 27. Qc3 {[%clk 0:01:27]}  Nd5 {[%clk 0:01:23]} 28. Qd4 {[%clk 0:01:18]}  Nb6 {[%clk 0:01:03]} 29. h3 {[%clk 0:01:09]}  f6 {[%clk 0:01:03]} 30. Bc7 {[%clk 0:01:08]}  Qe6 {[%clk 0:00:51]} 31. Qd8+ {[%clk 0:01:04]}  Kf7 {[%clk 0:00:51]} 32. Qb8 {[%clk 0:01:04]}  Nd5 {[%clk 0:00:33]} 33. Bd6 {[%clk 0:00:39]}  Qd7 {[%clk 0:00:24]} 34. Bc5 {[%clk 0:00:37]}  a5 {[%clk 0:00:23]} 35. d4 {[%clk 0:00:37]}  a4 {[%clk 0:00:23]} 36. Qa8 {[%clk 0:00:34]}  h6 {[%clk 0:00:21]} 37. Kh2 {[%clk 0:00:29]}  Nf4 {[%clk 0:00:21]} 38. Qf8+ {[%clk 0:00:26]}  Kg6 {[%clk 0:00:22]} 39. Qb8 {[%clk 0:00:25]}  Ne6 {[%clk 0:00:20]} 40. Qb4 {[%clk 0:00:20]}  Nxc5 {[%clk 0:00:19]} 41. dxc5 {[%clk 0:00:21]}  Qc7+ {[%clk 0:00:13]} 42. Kh1 {[%clk 0:00:18]}  Qa7 {[%clk 0:00:06]} 43. c6 {[%clk 0:00:17]}  a3 {[%clk 0:00:06]} 44. Qg4+ {[%clk 0:00:15]}  Kh7 {[%clk 0:00:06]} 45. Qe4+ {[%clk 0:00:13]}  Kh8 {[%clk 0:00:07]} 46. Qe8+ {[%clk 0:00:13]}  Kh7 {[%clk 0:00:06]} 47. Qd7 {[%clk 0:00:13]}  Qxd7 {[%clk 0:00:06]} 48. cxd7 {[%clk 0:00:13]}  a2 {[%clk 0:00:07]} 49. d8=Q {[%clk 0:00:14]}  a1=Q+ {[%clk 0:00:08]} 50. Kh2 {[%clk 0:00:15]}  Qe5+ {[%clk 0:00:08]} 51. Kh1 {[%clk 0:00:15]}  Qe1+ {[%clk 0:00:09]} 52. Kh2 {[%clk 0:00:15]}  Qe5+ {[%clk 0:00:10]} 53. Kg1 {[%clk 0:00:13]}  Qe1+ {[%clk 0:00:10]} 54. Kh2 {[%clk 0:00:13]}  Qe5+ {[%clk 0:00:11]} 1/2-1/2


[Site "https://www.chess.com"]

[Event "Titled Tuesday Blitz August 3 2021"]
[White "Mirzoev, Azer"]
[Black "Andreikin, Dmitry"]
[WhiteFideId "13400304"]
[BlackFideId "4158814"]
[WhiteElo "2525"]
[BlackElo "2782"]
[Result "1/2-1/2"]
[Round "03"]
[TimeControl "180+1"]
[Date "2021.08.03"]
[WhiteClock "0:00:11"]
[BlackClock "0:00:57"]

1. d4 {[%clk 0:02:58]}  d5 {[%clk 0:02:58]} 2. Nf3 {[%clk 0:02:58]}  Nf6 {[%clk 0:02:56]} 3. c4 {[%clk 0:02:58]}  e6 {[%clk 0:02:57]} 4. Nc3 {[%clk 0:02:52]}  Nbd7 {[%clk 0:02:56]} 5. cxd5 {[%clk 0:02:49]}  exd5 {[%clk 0:02:56]} 6. Bg5 {[%clk 0:02:48]}  c6 {[%clk 0:02:55]} 7. e3 {[%clk 0:02:48]}  h6 {[%clk 0:02:54]} 8. Bh4 {[%clk 0:02:48]}  Be7 {[%clk 0:02:55]} 9. Bd3 {[%clk 0:02:47]}  Nh5 {[%clk 0:02:55]} 10. Bxe7 {[%clk 0:02:46]}  Qxe7 {[%clk 0:02:56]} 11. O-O {[%clk 0:02:46]}  O-O {[%clk 0:02:56]} 12. Qc2 {[%clk 0:02:46]}  Re8 {[%clk 0:02:54]} 13. h3 {[%clk 0:02:46]}  Qf6 {[%clk 0:02:46]} 14. b4 {[%clk 0:02:37]}  g6 {[%clk 0:02:41]} 15. b5 {[%clk 0:02:35]}  Ng7 {[%clk 0:02:37]} 16. bxc6 {[%clk 0:02:34]}  bxc6 {[%clk 0:02:37]} 17. Rfc1 {[%clk 0:02:35]}  Ne6 {[%clk 0:02:30]} 18. Rab1 {[%clk 0:02:32]}  Nd8 {[%clk 0:02:16]} 19. Na4 {[%clk 0:02:25]}  Nb6 {[%clk 0:02:14]} 20. Ne5 {[%clk 0:02:14]}  Nxa4 {[%clk 0:02:08]} 21. Qxa4 {[%clk 0:02:14]}  Qg5 {[%clk 0:02:02]} 22. Kf1 {[%clk 0:01:54]}  Qh4 {[%clk 0:01:56]} 23. Nxc6 {[%clk 0:01:28]}  Bd7 {[%clk 0:01:55]} 24. Bb5 {[%clk 0:01:27]}  Bf5 {[%clk 0:01:50]} 25. Nxd8 {[%clk 0:01:11]}  Rexd8 {[%clk 0:01:46]} 26. Rb3 {[%clk 0:01:05]}  Rac8 {[%clk 0:01:41]} 27. Rbc3 {[%clk 0:00:59]}  Rxc3 {[%clk 0:01:38]} 28. Rxc3 {[%clk 0:00:58]}  Rb8 {[%clk 0:01:37]} 29. Rc5 {[%clk 0:00:29]}  Qe4 {[%clk 0:01:21]} 30. Kg1 {[%clk 0:00:26]}  Qb1+ {[%clk 0:01:14]} 31. Kh2 {[%clk 0:00:26]}  Qe1 {[%clk 0:01:10]} 32. Qxa7 {[%clk 0:00:18]}  Rf8 {[%clk 0:01:10]} 33. Kg3 {[%clk 0:00:14]}  h5 {[%clk 0:01:07]} 34. h4 {[%clk 0:00:11]}  Qd1 {[%clk 0:01:04]} 35. Kh2 {[%clk 0:00:11]}  Qe1 {[%clk 0:01:00]} 36. Kg3 {[%clk 0:00:11]}  Qd1 {[%clk 0:01:00]} 37. Kh2 {[%clk 0:00:11]}  Qe1 {[%clk 0:00:57]} 38. Kg3 {[%clk 0:00:11]} 1/2-1/2


[Site "https://www.chess.com"]

[Event "Titled Tuesday Blitz August 3 2021"]
[White "Moon_stone123"]
[Black "Korchmar, Vasiliy"]
[BlackFideId "24131750"]
[WhiteElo "2415"]
[BlackElo "2370"]
[Result "0-1"]
[Round "03"]
[TimeControl "180+1"]
[Date "2021.08.03"]
[WhiteClock "0:00:29"]
[BlackClock "0:01:28"]

1. Nf3 {[%clk 0:03:00]}  d5 {[%clk 0:02:59]} 2. g3 {[%clk 0:03:01]}  Bg4 {[%clk 0:02:58]} 3. Bg2 {[%clk 0:03:01]}  Nd7 {[%clk 0:02:59]} 4. O-O {[%clk 0:03:00]}  e6 {[%clk 0:02:59]} 5. d3 {[%clk 0:02:55]}  Ngf6 {[%clk 0:02:59]} 6. c4 {[%clk 0:02:55]}  c6 {[%clk 0:02:59]} 7. b3 {[%clk 0:02:54]}  Bd6 {[%clk 0:02:58]} 8. Bb2 {[%clk 0:02:54]}  O-O {[%clk 0:02:58]} 9. Nbd2 {[%clk 0:02:52]}  Re8 {[%clk 0:02:58]} 10. Qc2 {[%clk 0:02:45]}  a5 {[%clk 0:02:57]} 11. a3 {[%clk 0:02:45]}  e5 {[%clk 0:02:57]} 12. e4 {[%clk 0:02:44]}  d4 {[%clk 0:02:50]} 13. h3 {[%clk 0:02:33]}  Bh5 {[%clk 0:02:42]} 14. Nh4 {[%clk 0:02:31]}  Nc5 {[%clk 0:02:38]} 15. g4 {[%clk 0:02:22]}  Bg6 {[%clk 0:02:24]} 16. Nf5 {[%clk 0:02:22]}  Ne6 {[%clk 0:02:17]} 17. Nf3 {[%clk 0:02:05]}  Nf4 {[%clk 0:02:17]} 18. Bc1 {[%clk 0:02:03]}  Bxf5 {[%clk 0:02:15]} 19. gxf5 {[%clk 0:01:54]}  N6h5 {[%clk 0:02:14]} 20. Kh1 {[%clk 0:01:44]}  g6 {[%clk 0:02:15]} 21. Rg1 {[%clk 0:01:38]}  Kh8 {[%clk 0:02:14]} 22. fxg6 {[%clk 0:01:31]}  fxg6 {[%clk 0:02:14]} 23. Nh2 {[%clk 0:01:17]}  Qh4 {[%clk 0:02:10]} 24. Nf3 {[%clk 0:01:12]}  Qf6 {[%clk 0:02:10]} 25. Nh2 {[%clk 0:01:09]}  Rf8 {[%clk 0:02:07]} 26. Ng4 {[%clk 0:01:08]}  Qh4 {[%clk 0:02:08]} 27. Bxf4 {[%clk 0:00:48]}  Nxf4 {[%clk 0:02:06]} 28. Nh2 {[%clk 0:00:48]}  Nxh3 {[%clk 0:01:54]} 29. Bxh3 {[%clk 0:00:48]}  Qxh3 {[%clk 0:01:54]} 30. Rg3 {[%clk 0:00:49]}  Qh5 {[%clk 0:01:49]} 31. Kg2 {[%clk 0:00:44]}  Rf4 {[%clk 0:01:49]} 32. Rh1 {[%clk 0:00:43]}  Rh4 {[%clk 0:01:43]} 33. Qd2 {[%clk 0:00:32]}  Rf8 {[%clk 0:01:39]} 34. c5 {[%clk 0:00:29]}  Bxc5 {[%clk 0:01:38]} 35. Rg5 {[%clk 0:00:29]}  Qh6 {[%clk 0:01:28]} 36. Ng4 {[%clk 0:00:29]}  Rxg4+ {[%clk 0:01:28]} 0-1


[Site "https://www.chess.com"]

[Event "Titled Tuesday Blitz August 3 2021"]
[White "Murzin, Volodar"]
[Black "Angel_Hranitel_37"]
[WhiteFideId "44155573"]
[WhiteElo "2541"]
[BlackElo "2564"]
[Result "1-0"]
[Round "03"]
[TimeControl "180+1"]
[Date "2021.08.03"]
[WhiteClock "0:00:57"]
[BlackClock "0:01:15"]

1. e4 {[%clk 0:03:00]}  c5 {[%clk 0:02:53]} 2. Nf3 {[%clk 0:03:00]}  e6 {[%clk 0:02:53]} 3. g3 {[%clk 0:02:59]}  d5 {[%clk 0:02:53]} 4. exd5 {[%clk 0:02:55]}  exd5 {[%clk 0:02:54]} 5. d4 {[%clk 0:02:54]}  Nc6 {[%clk 0:02:55]} 6. Bg2 {[%clk 0:02:54]}  Bg4 {[%clk 0:02:55]} 7. O-O {[%clk 0:02:53]}  cxd4 {[%clk 0:02:55]} 8. Nbd2 {[%clk 0:02:52]}  Nf6 {[%clk 0:02:54]} 9. Nb3 {[%clk 0:02:52]}  Be7 {[%clk 0:02:52]} 10. Nbxd4 {[%clk 0:02:50]}  O-O {[%clk 0:02:51]} 11. c3 {[%clk 0:02:39]}  Rc8 {[%clk 0:02:49]} 12. Be3 {[%clk 0:02:37]}  Qd7 {[%clk 0:02:45]} 13. Re1 {[%clk 0:02:31]}  Ne4 {[%clk 0:02:43]} 14. Nxc6 {[%clk 0:02:10]}  bxc6 {[%clk 0:02:43]} 15. Ne5 {[%clk 0:02:09]}  Bxd1 {[%clk 0:02:34]} 16. Nxd7 {[%clk 0:02:09]}  Bh5 {[%clk 0:02:20]} 17. Nxf8 {[%clk 0:02:06]}  Kxf8 {[%clk 0:02:20]} 18. Bxa7 {[%clk 0:02:00]}  Ra8 {[%clk 0:02:17]} 19. Be3 {[%clk 0:01:55]}  Rb8 {[%clk 0:02:12]} 20. a4 {[%clk 0:01:30]}  Rxb2 {[%clk 0:02:00]} 21. a5 {[%clk 0:01:28]}  Nxc3 {[%clk 0:02:00]} 22. Bd4 {[%clk 0:01:08]}  Ne2+ {[%clk 0:01:58]} 23. Rxe2 {[%clk 0:01:08]}  Rxe2 {[%clk 0:01:58]} 24. a6 {[%clk 0:01:08]}  Ba3 {[%clk 0:01:44]} 25. a7 {[%clk 0:01:07]}  Re8 {[%clk 0:01:44]} 26. Rxa3 {[%clk 0:01:05]}  Re1+ {[%clk 0:01:13]} 27. Bf1 {[%clk 0:01:04]}  Be2 {[%clk 0:01:14]} 28. a8=Q+ {[%clk 0:01:03]}  Ke7 {[%clk 0:01:15]} 29. Qb7+ {[%clk 0:00:59]}  Kd6 {[%clk 0:01:15]} 30. Qb4+ {[%clk 0:00:57]} 1-0


[Site "https://www.chess.com"]

[Event "Titled Tuesday Blitz August 3 2021"]
[White "Nguyen Hong Nhung"]
[Black "Kavyev, Ruslan"]
[WhiteFideId "12412201"]
[BlackFideId "34110981"]
[WhiteElo "1661"]
[BlackElo "2172"]
[Result "0-1"]
[Round "03"]
[TimeControl "180+1"]
[Date "2021.08.03"]
[WhiteClock "0:00:17"]
[BlackClock "0:01:55"]

1. e4 {[%clk 0:03:00]}  d5 {[%clk 0:02:59]} 2. exd5 {[%clk 0:03:01]}  Nf6 {[%clk 0:02:59]} 3. d4 {[%clk 0:03:01]}  Bg4 {[%clk 0:02:59]} 4. Be2 {[%clk 0:02:53]}  Bxe2 {[%clk 0:02:59]} 5. Qxe2 {[%clk 0:02:47]}  Qxd5 {[%clk 0:03:00]} 6. Nf3 {[%clk 0:02:46]}  Nc6 {[%clk 0:03:00]} 7. c4 {[%clk 0:02:42]}  Qf5 {[%clk 0:02:58]} 8. Nc3 {[%clk 0:02:35]}  O-O-O {[%clk 0:02:57]} 9. Be3 {[%clk 0:02:33]}  e6 {[%clk 0:02:57]} 10. O-O {[%clk 0:02:32]}  Bd6 {[%clk 0:02:56]} 11. Rab1 {[%clk 0:02:24]}  Bf4 {[%clk 0:02:30]} 12. h3 {[%clk 0:02:06]}  g5 {[%clk 0:02:29]} 13. b4 {[%clk 0:01:43]}  h5 {[%clk 0:02:28]} 14. b5 {[%clk 0:01:42]}  Ne7 {[%clk 0:02:28]} 15. Ne5 {[%clk 0:01:37]}  Bxe5 {[%clk 0:02:19]} 16. dxe5 {[%clk 0:01:36]}  Qxe5 {[%clk 0:02:20]} 17. Qb2 {[%clk 0:01:15]}  g4 {[%clk 0:02:17]} 18. h4 {[%clk 0:01:11]}  g3 {[%clk 0:02:10]} 19. Qa3 {[%clk 0:01:06]}  gxf2+ {[%clk 0:02:07]} 20. Bxf2 {[%clk 0:01:01]}  Ng4 {[%clk 0:02:07]} 21. g3 {[%clk 0:01:00]}  Rd3 {[%clk 0:02:05]} 22. Kg2 {[%clk 0:00:42]}  Nf5 {[%clk 0:01:55]} 23. Qxa7 {[%clk 0:00:17]}  Rxg3+ {[%clk 0:01:54]} 24. Bxg3 {[%clk 0:00:16]}  Qxg3+ {[%clk 0:01:54]} 25. Kh1 {[%clk 0:00:17]}  Qh2# {[%clk 0:01:55]} 0-1


[Site "https://www.chess.com"]

[Event "Titled Tuesday Blitz August 3 2021"]
[White "Novikov, Evgenij"]
[Black "Xiong, Jeffery"]
[WhiteFideId "4125380"]
[BlackFideId "2047640"]
[WhiteElo "2242"]
[BlackElo "2724"]
[Result "0-1"]
[Round "03"]
[TimeControl "180+1"]
[Date "2021.08.03"]
[WhiteClock "0:00:02"]
[BlackClock "0:01:21"]

1. d4 {[%clk 0:03:00]}  Nf6 {[%clk 0:02:59]} 2. c4 {[%clk 0:02:59]}  c5 {[%clk 0:02:59]} 3. d5 {[%clk 0:02:58]}  b5 {[%clk 0:02:59]} 4. cxb5 {[%clk 0:02:59]}  a6 {[%clk 0:03:00]} 5. bxa6 {[%clk 0:02:59]}  g6 {[%clk 0:03:00]} 6. Nc3 {[%clk 0:02:59]}  Bxa6 {[%clk 0:03:00]} 7. e4 {[%clk 0:02:57]}  Bxf1 {[%clk 0:03:01]} 8. Kxf1 {[%clk 0:02:58]}  d6 {[%clk 0:03:02]} 9. g3 {[%clk 0:02:58]}  Bg7 {[%clk 0:03:02]} 10. Kg2 {[%clk 0:02:58]}  O-O {[%clk 0:03:03]} 11. Nge2 {[%clk 0:02:55]}  Nbd7 {[%clk 0:03:03]} 12. Qc2 {[%clk 0:02:49]}  Qb6 {[%clk 0:03:01]} 13. a4 {[%clk 0:02:28]}  Rfb8 {[%clk 0:03:00]} 14. Nb5 {[%clk 0:02:22]}  Ne8 {[%clk 0:02:45]} 15. Nec3 {[%clk 0:02:15]}  Qa5 {[%clk 0:02:33]} 16. Bg5 {[%clk 0:02:09]}  Kf8 {[%clk 0:02:33]} 17. b3 {[%clk 0:01:41]}  Qb4 {[%clk 0:02:28]} 18. Bd2 {[%clk 0:01:31]}  c4 {[%clk 0:02:28]} 19. Rab1 {[%clk 0:01:22]}  Nc5 {[%clk 0:02:27]} 20. bxc4 {[%clk 0:00:51]}  Qxc4 {[%clk 0:02:28]} 21. Rhc1 {[%clk 0:00:31]}  Nf6 {[%clk 0:02:19]} 22. f3 {[%clk 0:00:23]}  Nfd7 {[%clk 0:02:18]} 23. Na3 {[%clk 0:00:14]}  Qa6 {[%clk 0:02:18]} 24. Rxb8+ {[%clk 0:00:10]}  Rxb8 {[%clk 0:02:19]} 25. Nab5 {[%clk 0:00:10]}  Ne5 {[%clk 0:02:16]} 26. Be3 {[%clk 0:00:09]}  Ned7 {[%clk 0:02:03]} 27. Rb1 {[%clk 0:00:07]}  Rc8 {[%clk 0:01:58]} 28. Qe2 {[%clk 0:00:05]}  Nxa4 {[%clk 0:01:52]} 29. Nxa4 {[%clk 0:00:05]}  Qxa4 {[%clk 0:01:53]} 30. Rc1 {[%clk 0:00:04]}  Rb8 {[%clk 0:01:48]} 31. Nc3 {[%clk 0:00:04]}  Qa3 {[%clk 0:01:47]} 32. Qd2 {[%clk 0:00:01]}  Rb2 {[%clk 0:01:46]} 33. Rc2 {[%clk 0:00:02]}  Bxc3 {[%clk 0:01:36]} 34. Bh6+ {[%clk 0:00:01]}  Ke8 {[%clk 0:01:33]} 35. Rxb2 {[%clk 0:00:01]}  Bxd2 {[%clk 0:01:27]} 36. Rxd2 {[%clk 0:00:01]}  f5 {[%clk 0:01:27]} 37. exf5 {[%clk 0:00:01]}  gxf5 {[%clk 0:01:28]} 38. Bf4 {[%clk 0:00:02]}  Nf6 {[%clk 0:01:23]} 39. Re2 {[%clk 0:00:02]}  Nxd5 {[%clk 0:01:24]} 40. Bg5 {[%clk 0:00:02]}  Qd3 {[%clk 0:01:21]} 0-1


[Site "https://www.chess.com"]